bitfinex/quotes_BTCUSD_20240731
["timestamp","ask_amount","ask_price","bid_price","bid_amount"]
[1722438866026,0.0903419,66649.0,66648.0,1.21135092]
[1722438866231,0.0903419,66649.0,66648.0,1.36406936]
[1722438866764,0.0240419,66649.0,66648.0,1.35006936]
[1722438866931,0.0240419,66649.0,66648.0,1.37306936]
[1722438867137,0.0240419,66649.0,66648.0,1.65915336]
[1722438867347,0.0240419,66649.0,66648.0,1.67315336]
[1722438867545,0.0005,66649.0,66648.0,1.77315336]
[1722438868824,0.0005,66649.0,66648.0,1.77314922]
[1722438869029,0.0005,66649.0,66648.0,1.78714922]
[1722438869229,0.0005,66649.0,66648.0,1.75914922]
[1722438869641,0.0005,66649.0,66648.0,1.79914922]
[1722438869844,0.0005,66649.0,66648.0,1.78514922]
[1722438870039,0.0005,66649.0,66648.0,1.77114922]
[1722438870243,0.0005,66649.0,66648.0,1.78514922]
[1722438870463,0.02404202,66649.0,66648.0,1.79914922]
[1722438870907,0.0005,66649.0,66648.0,1.78714922]
[1722438871653,0.0005,66649.0,66648.0,1.77314922]
[1722438872147,0.0005,66649.0,66648.0,1.64843492]
[1722438872365,0.0005,66649.0,66648.0,1.78313814]
[1722438872564,0.0005,66649.0,66648.0,1.79713814]
[1722438872989,0.0005,66649.0,66648.0,1.79913814]
[1722438874283,0.02404167,66649.0,66648.0,1.79913814]
[1722438874685,0.0005,66649.0,66648.0,1.79913814]
[1722438874909,0.0005,66649.0,66648.0,2.09922214]
[1722438875114,0.0005,66649.0,66648.0,2.33817264]
[1722438875294,0.0005,66649.0,66648.0,2.09922214]
[1722438875513,0.0005,66649.0,66648.0,2.09921877]
[1722438875713,0.0005,66649.0,66648.0,1.79913477]
[1722438876334,0.0605,66664.0,66663.0,1.350072]
[1722438876532,0.0605,66664.0,66663.0,1.83902357]
[1722438876733,0.0005,66669.0,66663.0,1.87207154]
[1722438876893,0.0005,66669.0,66668.0,1.349973]
[1722438877097,0.0005,66669.0,66668.0,1.049979]
[1722438877349,0.0005,66669.0,66668.0,1.05999337]
[1722438877662,0.0005,66669.0,66668.0,1.35998737]
[1722438878162,0.02403664,66669.0,66668.0,1.35998737]
[1722438878974,0.02403664,66669.0,66668.0,1.50953909]
[1722438879175,0.0005,66669.0,66668.0,1.54653909]
[1722438879584,0.0005,66669.0,66668.0,1.66053909]
[1722438879835,0.0005,66669.0,66668.0,1.64653909]
[1722438880042,0.0005,66669.0,66668.0,1.66053909]
[1722438880416,0.0005,66669.0,66668.0,1.64653909]
[1722438880826,0.0005,66669.0,66668.0,2.08120495]
[1722438880966,0.0005,66669.0,66668.0,2.16590495]
[1722438881172,0.0005,66669.0,66668.0,2.15190495]
[1722438881623,0.0005,66669.0,66668.0,2.15390495]
[1722438881836,0.0005,66669.0,66668.0,1.74323909]
[1722438882036,0.0005,66669.0,66668.0,1.72923909]
[1722438882260,0.00133,66669.0,66668.0,2.01523309]
[1722438882475,0.00133,66669.0,66668.0,2.05523309]
[1722438882667,0.02486334,66669.0,66668.0,2.05523309]
[1722438883008,0.00133,66669.0,66668.0,2.05523309]
[1722438883826,0.00133,66669.0,66668.0,2.04323309]
[1722438884967,0.00133,66669.0,66668.0,2.05323309]
[1722438885220,0.00133,66669.0,66668.0,2.05523309]
[1722438885565,9e-05,66672.0,66668.0,2.05523309]
[1722438885566,9e-05,66672.0,66671.0,1.68189]
[1722438885779,9e-05,66672.0,66671.0,2.29380683]
[1722438886011,9e-05,66672.0,66671.0,2.60393018]
[1722438886416,0.02362222,66672.0,66671.0,2.60393018]
[1722438886831,0.02362222,66672.0,66671.0,2.27195018]
[1722438887039,0.02362222,66672.0,66671.0,1.84730507]
[1722438887895,9e-05,66672.0,66671.0,1.84730507]
[1722438888306,9e-05,66672.0,66671.0,1.63260507]
[1722438888497,9e-05,66672.0,66671.0,1.30962507]
[1722438888725,0.08099,66672.0,66671.0,1.32362507]
[1722438888838,0.08099,66672.0,66671.0,1.33762507]
[1722438889042,0.08099,66672.0,66671.0,1.17407335]
[1722438889240,0.14149,66672.0,66671.0,1.07407335]
[1722438889440,0.14149,66672.0,66671.0,0.78809335]
[1722438889665,0.14149,66672.0,66671.0,0.47411335]
[1722438889889,0.14149,66672.0,66671.0,0.02414335]
[1722438889890,0.20881749,66672.0,66671.0,0.02414335]
[1722438890085,0.291478,66672.0,66671.0,0.03814335]
[1722438890436,0.89294761,66672.0,66671.0,0.02414335]
[1722438890599,0.591454,66672.0,66671.0,0.02414335]
[1722438890802,0.61499028,66672.0,66671.0,0.014]
[1722438890963,1.16593029,66672.0,66671.0,0.014]
[1722438891164,1.03127531,66672.0,66671.0,0.014]
[1722438891387,1.03127531,66672.0,66662.0,0.150009]
[1722438891388,0.0783,66666.0,66662.0,0.150009]
[1722438891595,0.2326024,66663.0,66662.0,0.150009]
[1722438892218,0.1428,66663.0,66662.0,0.45003]
[1722438892367,0.23260552,66663.0,66662.0,0.45003]
[1722438892825,0.23260552,66663.0,66662.0,0.45803]
[1722438893200,0.23260552,66663.0,66662.0,0.45003]
[1722438893457,0.23260552,66663.0,66662.0,0.012]
[1722438893666,0.44702326,66663.0,66662.0,0.012]
[1722438893943,0.93480226,66663.0,66662.0,0.012]
[1722438894244,1.23481826,66663.0,66662.0,0.012]
[1722438894416,1.24417305,66663.0,66662.0,0.012]
[1722438894619,0.04196226,66663.0,66645.0,0.300095]
[1722438894854,0.04196226,66663.0,66629.0,0.30890947]
[1722438894855,0.19070296,66648.0,66636.0,0.060134]
[1722438895067,0.04490296,66645.0,66640.0,0.300119]
[1722438895263,0.04490296,66645.0,66629.0,0.300165]
[1722438895264,0.04490296,66645.0,66644.0,0.450153]
[1722438895468,0.04490296,66647.0,66644.0,0.300099]
[1722438895644,0.19070296,66648.0,66647.0,0.150044]
[1722438896007,0.1458,66648.0,66647.0,0.75022]
[1722438896291,0.1458,66648.0,66639.0,0.000913]
[1722438896292,0.0634,66647.0,66639.0,0.000913]
[1722438896491,0.0634,66645.0,66644.0,0.008]
[1722438896719,0.10828969,66645.0,66639.0,0.000913]
[1722438896836,0.19494713,66642.0,66639.0,0.000913]
[1722438897033,0.13075444,66640.0,66639.0,0.000913]
[1722438897327,0.10829511,66640.0,66639.0,0.150975]
[1722438897569,0.10829511,66640.0,66639.0,0.451099]
[1722438897788,0.10827899,66640.0,66639.0,0.751223]
[1722438897988,0.17225798,66644.0,66642.0,1.050388]
[1722438897989,0.04487899,66643.0,66642.0,1.050388]
[1722438898190,0.19227899,66644.0,66643.0,0.450159]
[1722438898340,0.1474,66644.0,66643.0,1.050371]
[1722438898546,0.00873909,66648.0,66639.0,0.000913]
[1722438898547,0.05361808,66648.0,66647.0,0.75022]
[1722438898750,0.00873909,66648.0,66647.0,0.75022]
[1722438898957,0.00873909,66648.0,66647.0,0.450132]
[1722438899113,0.0322833,66648.0,66647.0,0.450132]
[1722438899315,0.0322833,66648.0,66647.0,1.050308]
[1722438899519,0.0233636,66648.0,66647.0,1.19985972]
[1722438899719,0.10807899,66654.0,66653.0,0.450091]
[1722438899923,0.0632,66654.0,66653.0,0.750152]
[1722438900122,0.0632,66654.0,66653.0,0.7588403]
[1722438900362,0.0632,66654.0,66653.0,0.0086883]
[1722438900564,0.13051848,66654.0,66653.0,0.0086883]
[1722438900785,0.13047907,66654.0,66651.0,0.150034]
[1722438901139,0.13047907,66654.0,66649.0,0.300076]
[1722438901140,0.04485079,66652.0,66650.0,0.300075]
[1722438901316,0.04485079,66652.0,66651.0,0.150035]
[1722438901543,0.04485079,66652.0,66634.0,0.2147]
[1722438901544,0.0626,66650.0,66634.0,0.2147]
[1722438901749,0.0626,66650.0,66649.0,0.150039]
[1722438901951,0.0626,66650.0,66649.0,0.750197]
[1722438901952,0.10744728,66650.0,66649.0,0.750197]
[1722438902090,0.0626,66650.0,66649.0,1.050276]
[1722438902289,0.0626,66650.0,66649.0,0.750197]
[1722438902929,0.0636,66650.0,66649.0,0.750197]
[1722438903132,0.0626,66650.0,66649.0,0.750197]
[1722438903330,0.0626,66650.0,66649.0,0.450118]
[1722438903531,0.0636,66650.0,66649.0,0.164039]
[1722438903731,0.08122543,66650.0,66649.0,0.014]
[1722438903930,0.512712,66650.0,66649.0,0.014]
[1722438904159,0.28089357,66650.0,66649.0,0.026]
[1722438904356,0.28089357,66650.0,66649.0,0.012]
[1722438904674,0.28089357,66650.0,66649.0,0.024]
[1722438905086,0.13085657,66650.0,66649.0,0.024]
[1722438905593,0.12985657,66650.0,66649.0,0.012]
[1722438905849,0.13085657,66650.0,66649.0,0.026]
[1722438906098,0.12985657,66650.0,66647.0,0.150043]
[1722438906310,0.04482646,66649.0,66647.0,0.150043]
[1722438906685,0.04482646,66649.0,66644.0,0.300099]
[1722438906893,0.19486646,66649.0,66645.0,0.150048]
[1722438907091,0.19486646,66649.0,66622.0,0.537246]
[1722438907092,0.1444,66648.0,66634.0,0.300145]
[1722438907257,0.1444,66648.0,66635.0,0.1]
[1722438907474,0.1444,66648.0,66644.0,0.300097]
[1722438907680,0.1444,66648.0,66637.0,0.300132]
[1722438907681,0.150046,66646.0,66645.0,0.00870972]
[1722438907922,0.0615,66646.0,66645.0,0.00870972]
[1722438908133,0.0615,66646.0,66644.0,0.009]
[1722438908336,0.0615,66646.0,66645.0,0.00870972]
[1722438908963,0.0615,66646.0,66645.0,0.15875772]
[1722438909174,0.0615,66646.0,66645.0,0.00870972]
[1722438909331,0.0625,66646.0,66645.0,0.00870972]
[1722438909739,0.0615,66646.0,66645.0,0.00870972]
[1722438909975,0.0625,66646.0,66645.0,0.02070972]
[1722438910578,0.0625,66646.0,66645.0,0.03270972]
[1722438910785,0.0625,66646.0,66645.0,0.48285472]
[1722438911337,0.001,66646.0,66645.0,0.78295172]
[1722438911672,0.001,66646.0,66645.0,0.48285472]
[1722438912555,0.141,66646.0,66645.0,0.03270972]
[1722438913282,0.71001082,66646.0,66645.0,0.03270972]
[1722438913395,0.96599612,66646.0,66645.0,0.03270972]
[1722438913598,0.591139,66646.0,66645.0,0.03270972]
[1722438913805,0.141,66646.0,66645.0,0.024]
[1722438914186,0.141,66646.0,66645.0,0.48287353]
[1722438914299,0.141,66646.0,66645.0,0.18277653]
[1722438914905,0.141,66646.0,66645.0,0.48287353]
[1722438915656,0.17097936,66646.0,66645.0,0.03364153]
[1722438915814,0.141,66646.0,66645.0,0.03364153]
[1722438916216,0.141,66646.0,66645.0,0.18368953]
[1722438916428,0.0653,66646.0,66645.0,0.78388353]
[1722438916633,0.001,66646.0,66645.0,1.08398053]
[1722438916837,0.001,66646.0,66645.0,0.78388353]
[1722438917042,0.001,66646.0,66645.0,1.08398053]
[1722438920192,0.001,66646.0,66645.0,0.78388353]
[1722438920394,0.001,66646.0,66645.0,0.48378653]
[1722438921009,0.001,66646.0,66645.0,0.78388353]
[1722438921621,0.001,66646.0,66645.0,0.48378653]
[1722438922036,0.001,66646.0,66645.0,0.78388353]
[1722438922884,0.001,66646.0,66645.0,1.08398053]
[1722438923918,0.001,66646.0,66645.0,1.23353225]
[1722438924746,0.001,66646.0,66645.0,1.22153225]
[1722438925169,0.001,66646.0,66645.0,1.23553225]
[1722438925304,0.0601,66650.0,66649.0,0.750197]
[1722438925507,0.0601,66650.0,66649.0,1.050276]
[1722438925767,0.00875662,66651.0,66650.0,1.050262]
[1722438925974,0.00083,66652.0,66650.0,1.050262]
[1722438925975,0.00083,66652.0,66651.0,1.131145]
[1722438926177,0.00083,66652.0,66651.0,1.431215]
[1722438926376,0.00083,66652.0,66651.0,1.43991394]
[1722438926718,0.00083,66652.0,66651.0,1.13984394]
[1722438927337,0.00083,66652.0,66651.0,1.28939566]
[1722438928402,0.00083,66652.0,66651.0,1.30239566]
[1722438928898,0.00083,66652.0,66651.0,1.28939566]
[1722438929113,0.00083,66652.0,66651.0,1.30339566]
[1722438929521,0.00083,66652.0,66651.0,1.31739566]
[1722438930011,0.00083,66652.0,66651.0,1.61746566]
[1722438930143,0.00083,66652.0,66651.0,1.64046566]
[1722438930752,0.00083,66652.0,66651.0,1.8751653]
[1722438930977,0.00083,66652.0,66651.0,1.9270653]
[1722438931614,0.00083,66652.0,66651.0,1.8990653]
[1722438932023,0.00083,66652.0,66651.0,1.92705816]
[1722438932227,0.00083,66652.0,66651.0,1.91305816]
[1722438932427,0.00083,66652.0,66651.0,2.21312816]
[1722438932701,0.00083,66652.0,66651.0,1.92705816]
[1722438932901,0.00083,66652.0,66651.0,2.21312816]
[1722438933114,0.00083,66652.0,66651.0,1.91305816]
[1722438933516,0.00083,66652.0,66651.0,2.21312816]
[1722438933717,0.00083,66652.0,66651.0,1.92705816]
[1722438934123,0.00083,66652.0,66651.0,2.23712816]
[1722438934366,0.00083,66652.0,66651.0,2.23912816]
[1722438934569,0.0015542,66671.0,66670.0,1.345447]
[1722438934774,9e-05,66672.0,66671.0,0.74995]
[1722438934968,9e-05,66672.0,66671.0,1.04993]
[1722438935379,9e-05,66672.0,66671.0,1.05849068]
[1722438935955,9e-05,66672.0,66671.0,1.07249068]
[1722438936750,9e-05,66672.0,66671.0,1.2220424]
[1722438936957,9e-05,66672.0,66671.0,1.6412224]
[1722438937384,9e-05,66672.0,66671.0,1.08649068]
[1722438938436,0.01910572,66672.0,66671.0,0.03656068]
[1722438938735,0.1830615,66672.0,66671.0,0.028]
[1722438938941,0.288178,66672.0,66671.0,0.028]
[1722438939145,0.377921,66672.0,66671.0,0.03654406]
[1722438939285,0.22793455,66672.0,66671.0,0.03654406]
[1722438939491,0.37792255,66672.0,66671.0,0.028]
[1722438939673,0.67789855,66672.0,66671.0,0.03654406]
[1722438939875,0.97787455,66672.0,66671.0,0.03654406]
[1722438940102,1.33633463,66672.0,66671.0,0.0028892]
[1722438940317,0.0627,66665.0,66656.0,0.300047]
[1722438940572,0.212708,66663.0,66658.0,0.150018]
[1722438940778,0.212708,66663.0,66643.0,0.300102]
[1722438940779,0.04487258,66661.0,66651.0,0.300066]
[1722438941076,0.150028,66655.0,66645.0,0.150961]
[1722438941322,0.150028,66655.0,66652.0,0.00858367]
[1722438941323,0.15003,66653.0,66652.0,0.00858367]
[1722438941613,0.42024102,66653.0,66645.0,0.000913]
[1722438941808,0.04488248,66650.0,66647.0,0.150043]
[1722438941955,0.06732372,66652.0,66647.0,0.150043]
[1722438941956,0.04488248,66649.0,66647.0,0.150043]
[1722438942155,0.06732372,66651.0,66649.0,0.150039]
[1722438942156,0.04488248,66651.0,66649.0,0.150039]
[1722438942415,0.04488248,66651.0,66649.0,0.150038]
[1722438942605,0.04488248,66651.0,66650.0,0.15862484]
[1722438942963,0.04488248,66651.0,66650.0,0.00858784]
[1722438943175,0.04488248,66651.0,66650.0,0.15862484]
[1722438943379,0.11525711,66651.0,66650.0,0.00863402]
[1722438943750,0.16505686,66653.0,66649.0,0.150039]
[1722438943751,0.06732372,66652.0,66649.0,0.150039]
[1722438943892,0.06732372,66652.0,66650.0,0.00863402]
[1722438944103,0.06732972,66651.0,66650.0,0.150037]
[1722438944324,0.00890337,66653.0,66650.0,0.00863402]
[1722438944525,0.1453,66658.0,66656.0,0.150023]
[1722438944699,0.001,66651.0,66650.0,0.009]
[1722438945112,0.10948416,66651.0,66650.0,0.01863402]
[1722438945322,0.148,66651.0,66650.0,0.03263402]
[1722438945527,1.01391976,66651.0,66650.0,0.02263402]
[1722438945899,0.750232,66646.0,66645.0,0.000913]
[1722438946096,0.896232,66646.0,66645.0,0.000913]
[1722438946308,0.59618,66640.0,66639.0,0.000913]
[1722438946719,0.23578775,66640.0,66639.0,0.000913]
[1722438947016,0.146,66640.0,66639.0,0.00813096]
[1722438947218,0.21333496,66640.0,66639.0,0.451099]
[1722438947427,0.21333496,66640.0,66639.0,0.45831696]
[1722438947671,0.146,66640.0,66639.0,0.45831696]
[1722438947872,0.04488343,66641.0,66640.0,0.7503]
[1722438948073,0.06732515,66644.0,66641.0,0.150057]
[1722438948074,0.04488343,66643.0,66641.0,0.150057]
[1722438948227,0.06732515,66644.0,66641.0,0.150057]
[1722438948228,0.08976687,66644.0,66641.0,0.150057]
[1722438948428,0.06732502,66643.0,66642.0,0.0072117]
[1722438948638,0.0673197,66643.0,66642.0,0.1572667]
[1722438948864,0.0673197,66644.0,66643.0,0.150053]
[1722438949212,0.06181299,66645.0,66639.0,0.000913]
[1722438949213,0.19086382,66643.0,66639.0,0.000913]
[1722438949484,0.29486,66640.0,66639.0,0.000913]
[1722438949688,0.66230121,66640.0,66639.0,0.000913]
[1722438949988,0.8961,66640.0,66639.0,0.011913]
[1722438950219,0.59598,66640.0,66639.0,0.011913]
[1722438950400,0.74395807,66640.0,66639.0,0.000913]
[1722438950604,1.04407807,66640.0,66639.0,0.000913]
[1722438950742,1.04407807,66640.0,66639.0,0.011913]
[1722438950948,1.34419807,66640.0,66639.0,0.011913]
[1722438951281,1.04407807,66640.0,66639.0,0.000913]
[1722438951504,1.04507807,66640.0,66639.0,0.011913]
[1722438951642,1.34519807,66640.0,66639.0,0.011913]
[1722438951844,1.34519807,66640.0,66614.0,0.1]
[1722438951845,0.0753,66633.0,66614.0,0.1]
[1722438952056,0.04487096,66626.0,66614.0,0.14955172]
[1722438952256,0.04487096,66626.0,66624.0,0.150096]
[1722438952510,0.04487096,66627.0,66623.0,0.300194]
[1722438952738,0.04487096,66628.0,66619.0,0.30021]
[1722438952948,0.0621,66626.0,66618.0,0.300217]
[1722438953132,0.10697096,66626.0,66623.0,0.150096]
[1722438953357,0.10697096,66626.0,66624.0,0.150095]
[1722438953505,0.0621,66626.0,66621.0,0.300205]
[1722438953709,0.0823,66625.0,66624.0,0.00724926]
[1722438953884,0.0823,66625.0,66616.0,0.150112]
[1722438953885,0.17696613,66625.0,66616.0,0.150112]
[1722438954086,0.17696613,66625.0,66624.0,0.00724926]
[1722438954087,0.53258,66625.0,66624.0,0.00724926]
[1722438954292,0.53258,66625.0,66614.0,0.014]
[1722438954293,0.300209,66621.0,66614.0,0.014]
[1722438954632,0.0623,66624.0,66615.0,0.00726804]
[1722438954633,0.064,66624.0,66615.0,0.00726804]
[1722438954830,0.150112,66617.0,66615.0,0.00726804]
[1722438955056,0.150112,66617.0,66613.0,0.15012]
[1722438955188,0.04485094,66617.0,66616.0,0.00726595]
[1722438955410,0.25896194,66617.0,66614.0,0.013]
[1722438955635,0.2218,66617.0,66616.0,0.00726595]
[1722438955794,0.2218,66617.0,66616.0,0.150114]
[1722438955795,0.10885094,66617.0,66616.0,0.150114]
[1722438955997,0.10885094,66617.0,66616.0,0.45760795]
[1722438956196,0.04485094,66617.0,66616.0,0.75783595]
[1722438956634,0.04485094,66617.0,66616.0,1.05806395]
[1722438957019,0.04585094,66617.0,66616.0,1.13776395]
[1722438957221,0.002,66617.0,66616.0,1.13776395]
[1722438958211,0.0608,66624.0,66622.0,0.150099]
[1722438958392,0.0608,66624.0,66621.0,0.150102]
[1722438958586,0.0608,66624.0,66623.0,0.00735126]
[1722438958791,0.150115,66616.0,66610.0,0.300254]
[1722438959141,0.001,66617.0,66616.0,0.014]
[1722438959967,0.002,66617.0,66616.0,0.017]
[1722438960169,0.002,66617.0,66616.0,0.02436587]
[1722438960286,0.001,66617.0,66616.0,0.02136587]
[1722438960487,0.001,66617.0,66616.0,0.17147987]
[1722438960688,0.002,66617.0,66616.0,1.07516387]
[1722438961059,0.002,66617.0,66616.0,1.21846387]
[1722438961363,0.001,66617.0,66616.0,1.20446387]
[1722438961652,0.001,66617.0,66616.0,0.90423587]
[1722438961869,0.001,66617.0,66616.0,1.20446387]
[1722438962453,0.002,66617.0,66616.0,1.21846387]
[1722438962812,0.002,66617.0,66616.0,1.96847159]
[1722438963009,0.002,66617.0,66616.0,2.42369959]
[1722438963367,0.002,66617.0,66616.0,2.79763992]
[1722438963913,0.001,66617.0,66616.0,2.79463992]
[1722438964130,0.00083,66645.0,66644.0,1.050357]
[1722438964540,0.00083,66645.0,66644.0,1.05780324]
[1722438965979,0.00083,66645.0,66644.0,1.06980324]
[1722438966338,0.00083,66645.0,66644.0,0.77170124]
[1722438966743,0.00083,66645.0,66644.0,1.06980324]
[1722438967147,0.00083,66645.0,66644.0,1.07980324]
[1722438968036,0.00083,66645.0,66644.0,1.22935496]
[1722438968241,0.00083,66645.0,66644.0,1.25235496]
[1722438968636,0.00083,66645.0,66644.0,1.54045696]
[1722438968877,0.00083,66645.0,66644.0,1.24035496]
[1722438969233,0.00083,66645.0,66644.0,1.24435496]
[1722438969430,0.00083,66645.0,66644.0,1.25835496]
[1722438969758,0.00083,66645.0,66644.0,1.23535496]
[1722438970407,0.00083,66645.0,66644.0,0.48559924]
[1722438970617,0.00083,66645.0,66644.0,0.18549724]
[1722438970824,0.00083,66645.0,66644.0,0.78570124]
[1722438971645,0.00083,66645.0,66644.0,0.18549724]
[1722438971795,0.00083,66645.0,66644.0,0.48559924]
[1722438972141,0.00083,66645.0,66644.0,0.18549724]
[1722438972344,0.814672,66645.0,66644.0,0.03544624]
[1722438972496,0.814672,66645.0,66621.0,0.300204]
[1722438972497,0.150077,66633.0,66621.0,0.300204]
[1722438972698,0.150077,66633.0,66628.0,0.300173]
[1722438972699,0.1452,66632.0,66628.0,0.300173]
[1722438972921,0.03700401,66631.0,66618.0,0.0768]
[1722438973123,0.21996412,66632.0,66610.0,0.777353]
[1722438973124,0.21996412,66632.0,66612.0,0.0768]
[1722438973323,0.300175,66628.0,66612.0,0.14955172]
[1722438973542,0.22485812,66625.0,66621.0,0.150101]
[1722438973896,0.30018,66627.0,66621.0,0.028]
[1722438974213,0.300165,66630.0,66621.0,0.028]
[1722438974490,0.150092,66626.0,66622.0,0.150099]
[1722438974690,0.300176,66628.0,66623.0,0.150097]
[1722438974922,0.15009,66627.0,66623.0,0.150097]
[1722438975037,0.300172,66629.0,66619.0,0.300213]
[1722438975273,0.150094,66625.0,66619.0,0.300213]
[1722438975478,0.150094,66625.0,66621.0,0.150101]
[1722438976142,0.15009,66627.0,66623.0,0.153097]
[1722438976343,0.150091,66626.0,66622.0,0.150099]
[1722438976520,0.150089,66627.0,66623.0,0.150097]
[1722438976718,0.001,66625.0,66623.0,0.150097]
[1722438977274,0.0666,66623.0,66621.0,0.013]
[1722438977651,0.216699,66623.0,66621.0,0.007]
[1722438977860,0.0666,66623.0,66621.0,0.007]
[1722438978119,0.11073396,66623.0,66621.0,0.007]
[1722438978477,0.26083196,66623.0,66621.0,0.007]
[1722438978849,0.1501,66622.0,66621.0,0.007]
[1722438978999,0.1501,66622.0,66599.0,0.300303]
[1722438979000,0.832002,66622.0,66608.0,0.300263]
[1722438979216,0.10195001,66621.0,66613.0,0.15012]
[1722438979414,0.300212,66620.0,66614.0,0.150117]
[1722438979575,0.150114,66616.0,66612.0,0.150122]
[1722438979772,0.300212,66620.0,66609.0,0.151041]
[1722438979773,0.300224,66617.0,66609.0,0.151041]
[1722438979996,0.300224,66617.0,66609.0,0.000913]
[1722438979997,0.04947967,66616.0,66609.0,0.000913]
[1722438980484,0.150124,66612.0,66609.0,0.000913]
[1722438980710,0.150127,66610.0,66609.0,0.000913]
[1722438980916,0.226727,66610.0,66609.0,0.000913]
[1722438981127,1.2514694,66610.0,66609.0,0.000913]
[1722438981329,1.192292,66610.0,66609.0,0.000913]
[1722438981936,1.192292,66610.0,66609.0,0.014913]
[1722438982791,0.892037,66610.0,66609.0,0.014913]
[1722438983220,0.291527,66610.0,66609.0,0.000913]
[1722438983413,0.04947967,66616.0,66609.0,0.000913]
[1722438983414,0.150127,66611.0,66609.0,0.000913]
[1722438983615,0.150127,66610.0,66609.0,0.007913]
[1722438983991,0.150127,66610.0,66609.0,0.000913]
[1722438984195,0.450382,66610.0,66609.0,0.000913]
[1722438984392,0.451382,66610.0,66609.0,0.013913]
[1722438984624,0.2329495,66610.0,66609.0,0.016913]
[1722438984823,0.2319495,66610.0,66609.0,0.003913]
[1722438985181,0.8324595,66610.0,66609.0,0.003913]
[1722438985383,0.750637,66610.0,66609.0,0.006913]
[1722438985622,0.810937,66610.0,66609.0,0.006913]
[1722438986026,1.186892,66610.0,66609.0,0.006913]
[1722438986229,1.31605761,66610.0,66609.0,0.00226672]
[1722438986806,0.150152,66599.0,66595.0,0.159456]
[1722438987376,0.216759,66596.0,66595.0,0.009295]
[1722438987805,0.0666,66596.0,66595.0,0.009295]
[1722438988237,0.0666,66596.0,66595.0,0.159456]
[1722438988502,0.0666,66596.0,66595.0,0.016295]
[1722438988627,0.0666,66596.0,66595.0,0.009295]
[1722438988827,0.0666,66596.0,66595.0,0.018295]
[1722438989281,0.9068009,66596.0,66595.0,0.018295]
[1722438989505,0.817395,66596.0,66595.0,0.018295]
[1722438989701,1.117713,66596.0,66595.0,0.018295]
[1722438990083,1.117713,66596.0,66595.0,0.009295]
[1722438990280,1.117713,66596.0,66583.0,0.301287]
[1722438990281,0.01,66595.0,66583.0,0.000913]
[1722438990482,0.45055,66585.0,66583.0,0.000913]
[1722438990683,0.750917,66585.0,66583.0,0.000913]
[1722438991272,0.816917,66585.0,66583.0,0.000913]
[1722438991478,1.196484,66585.0,66584.0,0.021295]
[1722438991720,1.3161324,66585.0,66584.0,0.021295]
[1722438991945,1.3161324,66585.0,66578.0,0.009255]
[1722438991946,0.160197,66579.0,66578.0,0.009255]
[1722438992165,0.160197,66579.0,66572.0,0.009295]
[1722438992166,0.450633,66573.0,66572.0,0.009295]
[1722438992388,0.450633,66573.0,66564.0,0.009295]
[1722438992389,0.150229,66565.0,66564.0,0.009295]
[1722438992576,0.751145,66565.0,66564.0,0.009295]
[1722438993010,0.444687,66565.0,66564.0,0.009295]
[1722438993594,0.745145,66565.0,66564.0,0.009295]
[1722438994210,0.0754,66566.0,66564.0,0.009295]
[1722438994413,0.0792,66576.0,66564.0,0.009295]
[1722438994589,0.0792,66576.0,66565.0,0.00754632]
[1722438994767,0.0612,66577.0,66566.0,0.0764]
[1722438994971,0.0015542,66584.0,66575.0,0.751032]
[1722438994972,0.0015542,66576.0,66575.0,0.751032]
[1722438995219,0.0015542,66576.0,66575.0,1.051445]
[1722438995419,0.0104567,66584.0,66581.0,0.150191]
[1722438995591,0.0612,66585.0,66579.0,0.300392]
[1722438995592,0.0622,66585.0,66579.0,0.300392]
[1722438995831,0.0622,66585.0,66582.0,0.00751079]
[1722438995832,0.150188,66583.0,66582.0,0.00751079]
[1722438996039,0.150195,66580.0,66576.0,0.150202]
[1722438996241,0.150193,66581.0,66577.0,0.150201]
[1722438996413,0.150193,66581.0,66564.0,0.009295]
[1722438996414,0.300387,66581.0,66564.0,0.009295]
[1722438996618,0.150202,66577.0,66573.0,0.15021]
[1722438996802,0.150199,66578.0,66572.0,0.300426]
[1722438997003,0.012,66576.0,66572.0,0.150212]
[1722438997203,0.001,66576.0,66570.0,0.300431]
[1722438997443,0.151204,66576.0,66572.0,0.150212]
[1722438997649,0.20137461,66575.0,66570.0,0.150216]
[1722438997860,0.150213,66572.0,66567.0,0.150224]
[1722438998187,0.05116761,66575.0,66564.0,0.009295]
[1722438998392,0.04939507,66574.0,66570.0,0.150217]
[1722438998606,0.04939507,66574.0,66564.0,0.009295]
[1722438998808,0.001,66576.0,66564.0,0.009295]
[1722438998809,0.001,66576.0,66565.0,0.150228]
[1722438999017,0.001,66576.0,66564.0,0.009295]
[1722438999018,0.07476412,66571.0,66564.0,0.009295]
[1722438999226,0.150229,66565.0,66564.0,0.009295]
[1722438999401,0.07476412,66571.0,66564.0,0.009295]
[1722438999619,0.150225,66567.0,66564.0,0.009295]
[1722438999820,0.300445,66568.0,66564.0,0.009295]
[1722438999821,0.150226,66566.0,66564.0,0.009295]
[1722438999980,0.300437,66570.0,66564.0,0.159525]
[1722439000182,0.066167,66569.0,66564.0,0.009295]
[1722439000407,0.0608,66574.0,66564.0,0.009295]
[1722439000408,0.0608,66574.0,66569.0,0.150219]
[1722439000609,0.001,66572.0,66564.0,0.009295]
[1722439000832,0.001,66575.0,66564.0,0.009295]
[1722439001205,0.001,66575.0,66571.0,0.300427]
[1722439001375,0.01036598,66576.0,66574.0,0.150208]
[1722439001813,0.001,66574.0,66573.0,0.450632]
[1722439002077,0.001,66574.0,66573.0,0.751055]
[1722439002281,0.001,66575.0,66574.0,0.751042]
[1722439002488,0.002,66575.0,66574.0,0.751042]
[1722439002699,0.002,66575.0,66574.0,1.051459]
[1722439003134,0.001,66575.0,66574.0,1.051459]
[1722439003585,0.001,66575.0,66567.0,0.1481]